fUSD/lending_fUSD_20241111
["ID","MTS","AMOUNT","RATE_DAILY","PERIOD"]
[342006252,1731360638280,-500.0,0.00013999,2]
[342006253,1731360638290,-500.0,0.00013999,2]
[342006254,1731360638300,-500.0,0.00013999,2]
[342006255,1731360638309,-500.0,0.00013999,2]
[342006256,1731360638320,-500.0,0.00013999,2]
[342006257,1731360638329,-549.87503883,0.00013999,2]
[342006258,1731360638339,-500.0,0.00013999,2]
[342006259,1731360638348,-500.0,0.00013999,2]
[342006260,1731360638357,-500.0,0.00013999,2]
[342006261,1731360638366,-240.40156946,0.00013999,2]
[342006263,1731360638376,-500.0,0.00013999,2]
[342006265,1731360638385,-500.0,0.00013999,2]
[342006266,1731360638395,-500.0,0.00013999,2]
[342006268,1731360638404,-500.0,0.00013999,2]
[342006270,1731360638414,-500.0,0.00013999,2]
[342006272,1731360638424,-500.0,0.00013999,2]
[342006274,1731360638434,-521.70229524,0.00013999,2]
[342006277,1731360638443,-500.0,0.00013999,2]
[342006278,1731360638452,-500.0,0.00013999,2]
[342006280,1731360638461,-500.0,0.00013999,2]
[342006282,1731360638471,-500.0,0.00013999,2]
[342006284,1731360638481,-500.0,0.00013999,2]
[342006286,1731360638490,-500.0,0.00013999,2]
[342006288,1731360638500,-500.0,0.00013999,2]
[342006290,1731360638509,-500.0,0.00013999,2]
[342006292,1731360638518,-500.0,0.00013999,2]
[342006294,1731360638527,-500.0,0.00013999,2]
[342006296,1731360638537,-500.0,0.00013999,2]
[342006299,1731360638548,-500.0,0.00013999,2]
[342006300,1731360638558,-500.0,0.00013999,2]
[342006303,1731360638571,-500.0,0.00013999,2]
[342006305,1731360638583,-500.0,0.00013999,2]
[342006307,1731360638593,-281.43226062,0.00013999,2]
[342006309,1731360638603,-500.0,0.00013999,2]
[342006311,1731360638613,-500.0,0.00013999,2]
[342006313,1731360638623,-500.0,0.00013999,2]
[342006315,1731360638633,-500.0,0.00013999,2]
[342006317,1731360638643,-500.0,0.00013999,2]
[342006319,1731360638653,-500.0,0.00013999,2]
[342006321,1731360638663,-399.6,0.00013999,2]
[342006323,1731360638676,-500.0,0.00013999,2]
[342006325,1731360638686,-869.93,0.00013999,2]
[342006327,1731360638696,-869.93,0.00013999,2]
[342006329,1731360638706,-396.1106474,0.00013999,2]
[342006331,1731360638717,-869.93,0.00013999,2]
[342006333,1731360638729,-869.93,0.00013999,2]
[342006335,1731360638739,-500.0,0.00013999,2]
[342006337,1731360638750,-869.93,0.00013999,2]
[342006339,1731360638761,-869.93,0.00013999,2]
[342006341,1731360638770,-185.59210308,0.00013999,2]
[342006343,1731360638780,-869.93,0.00013999,2]
[342006345,1731360638790,-869.93,0.00013999,2]
[342006347,1731360638800,-869.93,0.00013999,2]
[342006349,1731360638810,-869.93,0.00013999,2]
[342006351,1731360638823,-869.93,0.00013999,2]
[342006353,1731360638841,-869.93,0.00013999,2]
[342006355,1731360638850,-869.93,0.00013999,2]
[342006357,1731360638860,-869.93,0.00013999,2]
[342006358,1731360638870,-869.93,0.00013999,2]
[342006359,1731360638880,-869.93,0.00013999,2]
[342006360,1731360638890,-869.93,0.00013999,2]
[342006361,1731360638900,-870.05895492,0.00013999,2]
[342006362,1731360638910,-500.0,0.00013999,2]
[342006363,1731360638919,-500.0,0.00013999,2]
[342006364,1731360638930,-227.4978781,0.00013999,2]
[342006365,1731360638939,-500.0,0.00013999,2]
[342006366,1731360638949,-500.0,0.00013999,2]
[342006367,1731360638959,-500.0,0.00013999,2]
[342006368,1731360638969,-500.0,0.00013999,2]
[342006369,1731360638979,-500.0,0.00013999,2]
[342006370,1731360638989,-500.0,0.00013999,2]
[342006372,1731360638999,-500.0,0.00013999,2]
[342006373,1731360639009,-278.43,0.00013999,2]
[342006375,1731360639019,-500.0,0.00013999,2]
[342006377,1731360639028,-500.0,0.00013999,2]
[342006379,1731360639038,-500.0,0.00013999,2]
[342006381,1731360639047,-500.0,0.00013999,2]
[342006383,1731360639057,-500.0,0.00013999,2]
[342006385,1731360639069,-500.0,0.00013999,2]
[342006387,1731360639079,-500.0,0.00013999,2]
[342006389,1731360639088,-359.00848619,0.00013999,2]
[342006391,1731360639098,-500.0,0.00013999,2]
[342006393,1731360639108,-193.14347046,0.00013999,2]
[342006395,1731360639117,-500.0,0.00013999,2]
[342006397,1731360639127,-500.0,0.00013999,2]
[342006399,1731360639137,-500.0,0.00013999,2]
[342006401,1731360639147,-334.76,0.00013999,2]
[342006403,1731360639157,-1112.23,0.00013999,2]
[342006405,1731360639166,-1112.23,0.00013999,2]
[342006407,1731360639175,-1112.23,0.00013999,2]
[342006409,1731360639185,-1112.23,0.00013999,2]
[342006411,1731360639194,-1112.23,0.00013999,2]
[342006413,1731360639204,-1112.23,0.00013999,2]
[342006415,1731360639213,-1112.23,0.00013999,2]
[342006417,1731360639223,-1112.23,0.00013999,2]
[342006419,1731360639232,-1112.23,0.00013999,2]
[342006421,1731360639242,-1112.23,0.00013999,2]
[342006423,1731360639251,-1112.23,0.00013999,2]
[342006424,1731360639261,-1112.23,0.00013999,2]
[342006426,1731360639271,-1112.23,0.00013999,2]
[342006428,1731360639281,-1112.23,0.00013999,2]
[342006430,1731360639291,-1112.23,0.00013999,2]
[342006432,1731360639301,-1112.23,0.00013999,2]
[342006434,1731360639312,-1112.23,0.00013999,2]
[342006436,1731360639323,-1112.23,0.00013999,2]
[342006438,1731360639333,-1112.23,0.00013999,2]
[342006440,1731360639342,-1112.23,0.00013999,2]
[342006442,1731360639351,-1112.29406897,0.00013999,2]
[342006444,1731360639360,-2369.78,0.00013999,2]
[342006446,1731360639370,-2369.78,0.00013999,2]
[342006448,1731360639380,-2369.78,0.00013999,2]
[342006451,1731360639389,-2369.78,0.00013999,2]
[342006453,1731360639399,-2369.78,0.00013999,2]
[342006454,1731360639408,-2369.78,0.00013999,2]
[342006457,1731360639417,-2369.78,0.00013999,2]
[342006459,1731360639426,-2369.78,0.00013999,2]
[342006461,1731360639436,-2369.78,0.00013999,2]
[342006463,1731360639445,-2369.78,0.00013999,2]
[342006465,1731360639455,-2369.78,0.00013999,2]
[342006466,1731360639464,-159.21,0.00013999,2]
[342006468,1731360639473,-2369.78,0.00013999,2]
[342006470,1731360639482,-2369.78,0.00013999,2]
[342006472,1731360639491,-2369.78,0.00013999,2]
[342006474,1731360639501,-2369.78,0.00013999,2]
[342006476,1731360639510,-2369.78,0.00013999,2]
[342006478,1731360639519,-2369.78,0.00013999,2]
[342006480,1731360639529,-2369.78,0.00013999,2]
[342006482,1731360639538,-2369.78,0.00013999,2]
[342006485,1731360639548,-2369.78,0.00013999,2]
[342006486,1731360639557,-2370.0,0.00013999,2]
[342006488,1731360639567,-500.0,0.00013999,2]
[342006491,1731360639579,-69863.60509777,0.00013999,2]
[342006493,1731360639597,-4057.61514411,0.00013999,2]
[342006495,1731360639608,-2175.883476,0.00013999,2]
[342006498,1731360639620,-65426.58103832,0.00013999,2]
[342006501,1731360639639,-535.511,0.00013999,2]
[342006503,1731360639651,-314.49158686,0.00013999,2]
[342006514,1731360639708,-2092.26963029,0.00013999,2]
[342006516,1731360639720,-915.29022052,0.00013999,2]
[342006559,1731360639955,-250.0,0.00012766,2]
[342006561,1731360639965,-416.24,0.000129,2]
[342006563,1731360639976,-361.60110311,0.000129,2]
[342006565,1731360639985,-500.0,0.00013698,2]
[342006567,1731360639995,-16.94889689,0.00013698,2]
[342006569,1731360640007,-274.5000006,0.00013698,2]
[342006571,1731360640018,-208.55110251,0.00013698,2]
[342006573,1731360640028,-500.0,0.00013988,2]
[342006575,1731360640038,-500.0,0.00013999,2]
[342006578,1731360640048,-86024.14479801,0.00013999,2]
[342006580,1731360640059,-509.80759403,0.00013999,2]
[342006592,1731360640177,-51780.47878661,0.00013999,2]
[342006594,1731360640189,-1752.84,0.00013999,2]
[342006596,1731360640202,-3346.86896125,0.00013999,2]
[342006599,1731360640214,-927.735,0.00013999,2]
[342006601,1731360640225,-1578.4684746,0.00013999,2]
[342006603,1731360640237,-2255.0,0.00013999,2]
[342006617,1731360640380,-145109.16022919,0.00013999,2]
[342006620,1731360640392,-122178.67272366,0.00013999,2]
[342006622,1731360640400,-11831.45802151,0.00013999,2]
[342006623,1731360640409,-111381.65508536,0.00014,2]
[342006635,1731360640512,-839481.03360388,0.00014,2]
[342006637,1731360640524,-5151.42313272,0.00014,2]
[342006639,1731360640535,-41179.41515182,0.00014,2]
[342006642,1731360640545,-14761.66432919,0.00014,2]
[342006644,1731360640556,-6624.14412416,0.00014,2]
[342006646,1731360640570,-996.6097433,0.00014,2]
[342006648,1731360640581,-5994.91937894,0.00014,2]
[342006650,1731360640592,-957.30873975,0.00014,2]
[342006652,1731360640606,-1185.56475262,0.00014,2]
[342006654,1731360640617,-899.75945891,0.00014,2]
[342006656,1731360640629,-4064.91139468,0.00014,2]
[342006659,1731360640639,-26753.53294037,0.00014,2]
[342006661,1731360640651,-2797.42542047,0.00014,2]
[342006671,1731360640737,-500.0,0.00013698,2]
[342006673,1731360640746,-408.27,0.00013988,2]
[342006675,1731360640755,-174382.66675132,0.00014,2]
[342006677,1731360640767,-22799.90999999,0.00014,2]
[342006679,1731360640777,-87265.31041452,0.00014,2]
[342006684,1731360640815,-71770.81295307,0.00014,2]
[342006698,1731360640942,-423.52125652,0.00013698,2]
[342006701,1731360640954,-76.47874348,0.00013698,2]
[342006703,1731360640964,-239.12125652,0.00014,2]
[342006709,1731360641018,-4388.70809755,0.00014,2]
[342006908,1731360642905,-500.0,0.00013698,2]
[342006911,1731360642915,-500.0,0.00013698,2]
[342006913,1731360642924,-500.0,0.00013698,2]
[342006915,1731360642934,-500.0,0.00013698,2]
[342006917,1731360642943,-715.64829336,0.00013698,2]
[342006919,1731360642953,-857.36125837,0.00013999,2]
[342006920,1731360642963,-9607.72606827,0.00014,2]
[342006925,1731360642997,-11085.53211217,0.00014,2]
[342006927,1731360643009,-1190.7406737,0.00014,2]
[342006929,1731360643021,-970.05573235,0.00014,2]
[342006932,1731360643033,-857.24556086,0.00014,2]
[342006934,1731360643044,-1747.00200664,0.00014,2]
[342006936,1731360643056,-10852.927,0.00014,2]
[342006940,1731360643082,-67527.92797921,0.00014,2]
[342006942,1731360643095,-25478.728,0.00014,2]
[342006944,1731360643110,-26853.2365718,0.00014,2]
[342006946,1731360643122,-7288.27474887,0.00014,2]
[342006949,1731360643141,-5633.91880583,0.00014,2]
[342006953,1731360643166,-757.88,0.00014,2]
[342006956,1731360643184,-439615.47280669,0.00014,2]
[342006958,1731360643196,-190781.89805393,0.00014,2]
[342006960,1731360643206,-500.0,0.00014,2]
[342006962,1731360643217,-157362.26182347,0.00014,2]
[342006966,1731360643243,-419917.24739759,0.00014,2]
[342006968,1731360643253,-186283.45406032,0.00014,2]
[342006970,1731360643263,-289609.37491168,0.00014,2]
[342006972,1731360643273,-152345.55574939,0.00014,2]
[342006974,1731360643282,-1000.0,0.00014,2]
[342006976,1731360643292,-1000.0,0.00014,2]
[342006978,1731360643303,-1000.0,0.00014,2]
[342006980,1731360643313,-1000.0,0.00014,2]
[342006982,1731360643325,-1000.0,0.00014,2]
[342006984,1731360643335,-1000.0,0.00014,2]
[342006986,1731360643344,-1000.0,0.00014,2]
[342006988,1731360643354,-1000.0,0.00014,2]
[342006990,1731360643364,-1000.0,0.00014,2]
[342006992,1731360643374,-1000.0,0.00014,2]
[342006994,1731360643383,-1000.0,0.00014,2]
[342006996,1731360643393,-1000.0,0.00014,2]
[342006998,1731360643403,-1000.0,0.00014,2]
[342007000,1731360643412,-1000.0,0.00014,2]
[342007002,1731360643422,-1000.0,0.00014,2]
[342007004,1731360643432,-1000.0,0.00014,2]
[342007006,1731360643443,-1000.0,0.00014,2]
[342007009,1731360643453,-1000.0,0.00014,2]
[342007011,1731360643462,-1000.0,0.00014,2]
[342007013,1731360643471,-1000.0,0.00014,2]
[342007015,1731360643482,-1000.0,0.00014,2]
[342007016,1731360643491,-1000.0,0.00014,2]
[342007019,1731360643501,-1000.0,0.00014,2]
[342007021,1731360643511,-1000.0,0.00014,2]
[342007023,1731360643521,-1000.0,0.00014,2]
[342007024,1731360643531,-1000.0,0.00014,2]
[342007027,1731360643541,-1000.0,0.00014,2]
[342007028,1731360643550,-559.00029972,0.00014,2]
[342007031,1731360643561,-1000.0,0.00014,2]
[342007033,1731360643575,-2000.0,0.00014,2]
[342007035,1731360643584,-200.0,0.00014,2]
[342007037,1731360643594,-12635.0,0.00014,2]
[342007039,1731360643606,-269.23650369,0.00014,2]
[342007041,1731360643616,-189.62941679,0.00014,2]
[342007043,1731360643626,-404620.60354675,0.00014,2]
[342007045,1731360643636,-1000.0,0.00014,2]
[342007047,1731360643646,-500.0,0.00014,2]
[342007049,1731360643656,-202.59358305,0.00014,2]
[342007051,1731360643666,-500.0,0.00014,2]
[342007053,1731360643676,-150.0,0.00014,2]
[342007055,1731360643685,-150.0,0.00014,2]
[342007057,1731360643695,-500.0,0.00014,2]
[342007059,1731360643705,-264.51115016,0.00014,2]
[342007061,1731360643715,-150.0,0.00014,2]
[342007063,1731360643724,-150.0,0.00014,2]
[342007065,1731360643734,-1061.0,0.00014,2]
[342007067,1731360643743,-106641.77741306,0.00014,2]
[342007069,1731360643753,-2086.66304929,0.00014,2]
[342007071,1731360643763,-410.2,0.00014,5]
[342007073,1731360643773,-99525.0,0.00014,2]
[342007075,1731360643783,-184.16,0.00014009,2]
[342007077,1731360643793,-286.06447416,0.00014043,2]
[342007079,1731360643803,-197.72,0.00014071,2]
[342007081,1731360643813,-1700.0,0.00014076,2]
[342007083,1731360643825,-500.0,0.00014076,2]
[342007085,1731360643835,-900.0,0.00014076,2]
[342007087,1731360643844,-2300.0,0.00014076,2]
[342007089,1731360643855,-240.0,0.00014104,2]
[342007091,1731360643865,-269.089932,0.0001413,2]
[342007093,1731360643875,-581.6,0.00014136,2]
[342007095,1731360643885,-643.85004874,0.0001414,2]
[342007097,1731360643895,-200.0,0.0001414,2]
[342007099,1731360643905,-150.0,0.00014144,2]
[342007101,1731360643915,-1053.0,0.00014152,2]
[342007103,1731360643925,-1000.0,0.000142,2]
[342007105,1731360643934,-163.34,0.00014239,2]
[342007107,1731360643944,-13942.88,0.00014247,2]
[342007109,1731360643954,-420.0,0.00014256,2]
[342007111,1731360643964,-581.6,0.00014273,2]
[342007113,1731360643974,-500.0,0.00014274,2]
[342007115,1731360643984,-500.0,0.00014274,2]
[342007117,1731360643993,-150.0,0.00014274,2]
[342007119,1731360644004,-150.0,0.00014274,2]
[342007121,1731360644015,-687.53130354,0.00014274,2]
[342007123,1731360644024,-209.17606465,0.00014274,2]
[342007125,1731360644034,-1061.0,0.00014274,2]
[342007127,1731360644044,-200.0,0.00014281,2]
[342007129,1731360644054,-269.089932,0.000143,2]
[342007131,1731360644064,-286.06447416,0.00014329,2]
[342007133,1731360644077,-1000.0,0.00014352,2]
[342007135,1731360644087,-208.61,0.00014362,2]
[342007137,1731360644097,-8086.88932699,0.0001439,2]
[342007139,1731360644107,-581.6,0.0001441,2]
[342007141,1731360644117,-200.0,0.00014424,2]
[342007143,1731360644126,-201.0,0.0001445,2]
[342007145,1731360644136,-174.86,0.00014474,2]
[342007147,1731360644146,-1000.0,0.00014499,2]
[342007149,1731360644157,-923.1659065,0.000145,2]
[342007151,1731360644167,-8756.80251461,0.000145,3]
[342007153,1731360644177,-581.6,0.00014547,2]
[342007155,1731360644188,-500.0,0.00014548,2]
[342007157,1731360644198,-500.0,0.00014548,2]
[342007159,1731360644208,-219.12322291,0.00014548,2]
[342007162,1731360644218,-150.0,0.00014548,2]
[342007163,1731360644228,-1061.0,0.00014548,2]
[342007166,1731360644238,-253.7335,0.00014554,2]
[342007168,1731360644249,-200.0,0.00014568,2]
[342007170,1731360644259,-286.06447416,0.00014614,2]
[342007172,1731360644269,-581.6,0.00014684,2]
[342007174,1731360644280,-150.0,0.00014707,2]
[342007176,1731360644290,-374.80770037,0.00014714,2]
[342007178,1731360644299,-150.0,0.00014716,2]
[342007180,1731360644309,-150.0,0.00014717,2]
[342007182,1731360644322,-1500.0,0.00014719,2]
[342007184,1731360644331,-1500.0,0.0001472,2]
[342007186,1731360644342,-1500.0,0.00014723,2]
[342007188,1731360644352,-2540.0604883,0.00014724,3]
[342007190,1731360644362,-150.0,0.00014728,2]
[342007192,1731360644372,-150.0,0.00014728,2]
[342007194,1731360644382,-770.9732388,0.0001473,2]
[342007196,1731360644393,-150.0,0.0001473,2]
[342007198,1731360644404,-150.0,0.00014733,2]
[342007200,1731360644416,-150.0,0.00014735,2]
[342007202,1731360644426,-150.0,0.00014735,2]
[342007204,1731360644437,-150.0,0.00014736,2]
[342007207,1731360644447,-150.0,0.00014741,2]
[342007209,1731360644458,-1500.0,0.00014742,2]
[342007211,1731360644468,-150.0,0.00014743,2]
[342007212,1731360644478,-150.0,0.00014744,2]
[342007215,1731360644488,-150.0,0.00014745,2]
[342007216,1731360644498,-150.0,0.00014746,2]
[342007219,1731360644509,-150.0,0.00014746,2]
[342007221,1731360644519,-150.0,0.00014747,2]
[342007223,1731360644529,-150.0,0.0001475,2]
[342007225,1731360644539,-150.0,0.00014754,2]
[342007227,1731360644549,-150.0,0.00014756,2]
[342007229,1731360644561,-150.0,0.00014757,2]
[342007231,1731360644571,-150.0,0.00014759,2]
[342007233,1731360644585,-1500.0,0.00014764,2]
[342007235,1731360644595,-150.0,0.00014764,2]
[342007237,1731360644606,-150.0,0.00014767,2]
[342007239,1731360644616,-150.0,0.00014767,2]
[342007241,1731360644627,-150.0,0.0001477,2]
[342007243,1731360644637,-150.0,0.0001477,2]
[342007245,1731360644648,-1500.0,0.00014771,2]
[342007247,1731360644658,-1500.0,0.00014771,2]
[342007249,1731360644670,-150.0,0.00014772,2]
[342007252,1731360644680,-150.0,0.00014772,2]
[342007253,1731360644690,-150.0,0.00014773,2]
[342007256,1731360644700,-150.0,0.00014775,2]
[342007258,1731360644710,-150.0,0.00014777,2]
[342007259,1731360644720,-150.0,0.0001478,2]
[342007261,1731360644729,-150.0,0.00014784,2]
[342007262,1731360644738,-150.0,0.00014785,2]
[342007263,1731360644748,-150.0,0.00014786,2]
[342007264,1731360644758,-150.0,0.00014787,2]
[342007265,1731360644767,-150.0,0.00014787,2]
[342007266,1731360644776,-150.0,0.00014791,2]
[342007267,1731360644786,-150.0,0.00014791,2]
[342007268,1731360644796,-150.0,0.00014791,2]
[342007283,1731360644806,-1500.0,0.00014792,2]
[342007285,1731360644986,-201.0,0.00014794,2]
[342007287,1731360644995,-201.0,0.00014794,2]
[342007289,1731360645005,-201.0,0.00014794,2]
[342007291,1731360645016,-201.0,0.00014794,2]
[342007293,1731360645025,-201.0,0.00014794,2]
[342007294,1731360645034,-201.0,0.00014794,2]
[342007296,1731360645043,-201.0,0.00014794,2]
[342007298,1731360645053,-201.0,0.00014794,2]
[342007300,1731360645063,-201.0,0.00014794,2]
[342007302,1731360645074,-201.0,0.00014794,2]
[342007304,1731360645084,-201.0,0.00014794,2]
[342007307,1731360645094,-201.0,0.00014794,2]
[342007308,1731360645103,-201.0,0.00014794,2]
[342007310,1731360645113,-201.0,0.00014794,2]
[342007312,1731360645124,-201.0,0.00014794,2]
[342007314,1731360645134,-201.0,0.00014794,2]
[342007316,1731360645144,-201.0,0.00014794,2]
[342007318,1731360645154,-201.0,0.00014794,2]
[342007320,1731360645164,-1527.2,0.00014795,2]
[342007322,1731360645175,-499.0,0.000148,2]
[342007324,1731360645186,-499.0,0.000148,2]
[342007326,1731360645196,-499.0,0.000148,2]
[342007328,1731360645207,-499.0,0.000148,2]
[342007330,1731360645218,-499.0,0.000148,2]
[342007332,1731360645227,-499.0,0.000148,2]
[342007334,1731360645237,-499.0,0.000148,2]
[342007336,1731360645247,-499.0,0.000148,2]
[342007338,1731360645257,-499.0,0.000148,2]
[342007340,1731360645266,-499.0,0.000148,2]
[342007342,1731360645276,-499.0,0.000148,2]
[342007344,1731360645287,-499.0,0.000148,2]
[342007346,1731360645298,-499.0,0.000148,2]
[342007348,1731360645309,-499.0,0.000148,2]
[342007350,1731360645323,-499.0,0.000148,2]
[342007352,1731360645333,-499.0,0.000148,2]
[342007354,1731360645343,-499.0,0.000148,2]
[342007356,1731360645352,-499.0,0.000148,2]
[342007358,1731360645361,-499.0,0.000148,2]
[342007360,1731360645370,-499.0,0.000148,2]
[342007362,1731360645380,-3810.48,0.000148,2]
[342007364,1731360645390,-201.0,0.000148,2]
[342007366,1731360645400,-915.0,0.000148,2]
[342007368,1731360645410,-150.0,0.000148,2]
[342007370,1731360645419,-150.0,0.00014802,2]
[342007372,1731360645429,-150.0,0.00014803,2]
[342007374,1731360645438,-900.0,0.00014804,2]
[342007376,1731360645448,-150.0,0.00014805,2]
[342007378,1731360645458,-150.0,0.0001481,2]
[342007380,1731360645468,-150.0,0.00014815,2]
[342007382,1731360645477,-581.6,0.00014821,2]
[342007384,1731360645486,-500.0,0.00014822,2]
[342007386,1731360645497,-500.0,0.00014822,2]
[342007388,1731360645506,-150.0,0.00014822,2]
[342007390,1731360645515,-1061.0,0.00014822,2]
[342007392,1731360645526,-150.0,0.00014823,2]
[342007394,1731360645535,-1500.0,0.00014824,2]
[342007396,1731360645545,-150.0,0.00014825,2]
[342007398,1731360645554,-150.0,0.00014827,2]
[342007400,1731360645564,-150.0,0.00014828,2]
[342007403,1731360645578,-150.0,0.00014829,2]
[342007404,1731360645588,-150.0,0.00014829,2]
[342007407,1731360645598,-150.0,0.00014832,2]
[342007408,1731360645608,-150.0,0.00014832,2]
[342007411,1731360645618,-150.0,0.00014833,2]
[342007413,1731360645631,-1500.0,0.00014834,2]
[342007415,1731360645641,-150.0,0.00014834,2]
[342007417,1731360645651,-150.0,0.00014835,2]
[342007419,1731360645661,-150.0,0.00014836,2]
[342007421,1731360645672,-150.0,0.00014837,2]
[342007424,1731360645683,-150.0,0.00014841,2]
[342007427,1731360645694,-150.0,0.00014842,2]
[342007429,1731360645704,-150.0,0.00014843,2]
[342007431,1731360645714,-1500.0,0.00014846,2]
[342007433,1731360645724,-2866.93932631,0.0001485,2]
[342007434,1731360645733,-150.0,0.0001485,2]
[342007436,1731360645743,-150.0,0.00014854,2]
[342007438,1731360645753,-150.0,0.00014854,2]
[342007440,1731360645763,-150.0,0.00014854,2]
[342007443,1731360645774,-150.0,0.00014855,2]
[342007446,1731360645784,-299.81023498,0.00014856,2]
[342007450,1731360645795,-150.0,0.00014858,2]
[342007452,1731360645805,-150.0,0.00014858,2]
[342007455,1731360645815,-1053.0,0.00014859,2]
[342007459,1731360645831,-150.0,0.0001486,2]
[342007462,1731360645841,-1500.0,0.00014862,2]
[342007465,1731360645852,-150.0,0.00014869,2]
[342007468,1731360645863,-150.0,0.00014873,2]
[342007471,1731360645874,-150.0,0.00014874,2]
[342007474,1731360645884,-150.0,0.00014875,2]
[342007476,1731360645894,-150.0,0.00014875,2]
[342007479,1731360645904,-150.0,0.00014875,2]
[342007482,1731360645913,-1500.0,0.0001488,2]
[342007485,1731360645923,-150.0,0.0001488,2]
[342007487,1731360645933,-1500.0,0.00014881,2]
[342007491,1731360645943,-150.0,0.00014881,2]
[342007493,1731360645952,-1500.0,0.00014884,2]
[342007495,1731360645961,-150.0,0.00014884,2]
[342007497,1731360645971,-150.0,0.00014885,2]
[342007499,1731360645981,-150.0,0.00014888,2]
[342007502,1731360645990,-150.0,0.00014888,2]
[342007505,1731360645999,-150.0,0.00014888,2]
[342007508,1731360646010,-150.0,0.00014889,2]
[342007511,1731360646019,-150.0,0.00014889,2]
[342007513,1731360646028,-150.0,0.0001489,2]
[342007516,1731360646038,-150.0,0.00014891,2]
[342007519,1731360646047,-1500.0,0.00014892,2]
[342007522,1731360646057,-150.0,0.00014897,2]
[342007525,1731360646066,-150.0,0.00014897,2]
[342007528,1731360646079,-150.0,0.00014898,2]
[342007531,1731360646088,-1000.0,0.00014899,2]
[342007534,1731360646098,-1000.0,0.00014899,2]
[342007537,1731360646108,-150.0,0.00014899,2]
[342007540,1731360646118,-150.0,0.00014899,2]
[342007543,1731360646128,-1001.0,0.000149,2]
[342007546,1731360646139,-2170.38937652,0.000149,2]
[342007549,1731360646150,-2000.0,0.000149,2]
[342007552,1731360646161,-855.7786,0.000149,2]
[342007555,1731360646172,-2096.7578,0.000149,2]
[342007558,1731360646182,-2000.0,0.000149,2]
[342007561,1731360646193,-8500.0,0.000149,2]
[342007563,1731360646203,-13780.03293992,0.000149,2]
[342007566,1731360646213,-164.39756885,0.000149,2]
[342007569,1731360646224,-164.39756885,0.000149,2]
[342007572,1731360646234,-164.39756885,0.000149,2]
[342007576,1731360646245,-164.39756885,0.000149,2]
[342007579,1731360646256,-164.39756885,0.000149,2]
[342007581,1731360646267,-164.39756885,0.000149,2]
[342007584,1731360646277,-164.39756885,0.000149,2]
[342007587,1731360646287,-164.39756885,0.000149,2]
[342007590,1731360646297,-164.39756885,0.000149,2]
[342007593,1731360646307,-164.39,0.000149,2]
[342007596,1731360646317,-154.1227208,0.000149,2]
[342007599,1731360646329,-154.1227208,0.000149,2]
[342007602,1731360646339,-154.1227208,0.000149,2]
[342007605,1731360646350,-154.1227208,0.000149,2]
[342007608,1731360646360,-154.1227208,0.000149,2]
[342007611,1731360646370,-154.1227208,0.000149,2]
[342007614,1731360646380,-154.1227208,0.000149,2]
[342007617,1731360646390,-154.1227208,0.000149,2]